[Event "Early-Titled-Tuesday-Blitz-May-28-2024"]
[Site "Chess.com"]
[Date "2024.05.28"]
[Round "6"]
[White "DvaHrasta"]
[Black "Matsanovic"]
[Result "0-1"]
[WhiteElo "2437"]
[BlackElo "2618"]
[TimeControl "180+1"]
[EndTime "9:08:07 PDT"]
[Termination "Matsanovic won on time"]

1. c4 {[%clk 0:03:00.9]} 1... e6 {[%clk 0:02:58.1]} 2. g3 {[%clk 0:03:00.6]}
2... d5 {[%clk 0:02:58]} 3. d4 {[%clk 0:03:00.7]} 3... Nf6 {[%clk 0:02:56]} 4.
Bg2 {[%clk 0:03:00.8]} 4... dxc4 {[%clk 0:02:56]} 5. Nf3 {[%clk 0:03:00.7]} 5...
a6 {[%clk 0:02:56]} 6. O-O {[%clk 0:03:00.6]} 6... Nc6 {[%clk 0:02:56.5]} 7. a4
{[%clk 0:02:58.7]} 7... Bb4 {[%clk 0:02:55.3]} 8. Na3 {[%clk 0:02:49.9]} 8... c3
{[%clk 0:02:53.8]} 9. b3 {[%clk 0:02:34.7]} 9... O-O {[%clk 0:02:44.9]} 10. Nc2
{[%clk 0:02:34.2]} 10... a5 {[%clk 0:02:42.3]} 11. Qd3 {[%clk 0:02:28.4]} 11...
b6 {[%clk 0:02:39.3]} 12. Rd1 {[%clk 0:01:40.9]} 12... Ba6 {[%clk 0:02:37.4]}
13. Qe3 {[%clk 0:01:37.8]} 13... Nd5 {[%clk 0:02:32.9]} 14. Qe4 {[%clk
0:01:31.3]} 14... h6 {[%clk 0:02:01.6]} 15. Ne5 {[%clk 0:01:24.2]} 15... Nxe5
{[%clk 0:01:23.4]} 16. dxe5 {[%clk 0:01:20]} 16... Qe7 {[%clk 0:01:19]} 17. Qg4
{[%clk 0:01:16]} 17... Kh8 {[%clk 0:01:17.2]} 18. e4 {[%clk 0:01:07.2]} 18... f5
{[%clk 0:01:16.9]} 19. exf6 {[%clk 0:00:56.2]} 19... Nxf6 {[%clk 0:01:16.1]} 20.
Qh4 {[%clk 0:00:53.5]} 20... Rad8 {[%clk 0:01:11.4]} 21. Be3 {[%clk 0:00:49.6]}
21... Bd3 {[%clk 0:01:04.8]} 22. Rac1 {[%clk 0:00:37]} 22... Bxc2 {[%clk
0:00:54.3]} 23. Rxd8 {[%clk 0:00:34.5]} 23... Qxd8 {[%clk 0:00:53]} 24. e5
{[%clk 0:00:24.7]} 24... Bf5 {[%clk 0:00:29.3]} 25. exf6 {[%clk 0:00:19.6]}
25... Qxf6 {[%clk 0:00:30]} 26. Qxf6 {[%clk 0:00:17.5]} 26... Rxf6 {[%clk
0:00:30.5]} 27. Bd4 {[%clk 0:00:17]} 27... Rf7 {[%clk 0:00:24.6]} 28. Bxc3
{[%clk 0:00:17.1]} 28... c5 {[%clk 0:00:23.2]} 29. Bxb4 {[%clk 0:00:16.5]} 29...
axb4 {[%clk 0:00:23.7]} 30. Bf1 {[%clk 0:00:14]} 30... Rd7 {[%clk 0:00:21.8]}
31. Bc4 {[%clk 0:00:13.5]} 31... Kh7 {[%clk 0:00:21.3]} 32. f4 {[%clk
0:00:12.8]} 32... h5 {[%clk 0:00:20.9]} 33. Re1 {[%clk 0:00:12.2]} 33... Rd6
{[%clk 0:00:20.1]} 34. Re5 {[%clk 0:00:11.7]} 34... Kg6 {[%clk 0:00:19.3]} 35.
a5 {[%clk 0:00:12]} 35... bxa5 {[%clk 0:00:17.3]} 36. Rxc5 {[%clk 0:00:12.2]}
36... Rd1+ {[%clk 0:00:17]} 37. Kf2 {[%clk 0:00:12]} 37... Rd2+ {[%clk
0:00:17.2]} 38. Ke3 {[%clk 0:00:11.7]} 38... Ra2 {[%clk 0:00:17]} 39. Rc6 {[%clk
0:00:10.6]} 39... Kf6 {[%clk 0:00:16.7]} 40. h4 {[%clk 0:00:10.5]} 40... Rg2
{[%clk 0:00:13.3]} 41. Kf3 {[%clk 0:00:09.5]} 41... Rb2 {[%clk 0:00:10.9]} 42.
Ke3 {[%clk 0:00:07.9]} 42... Rc2 {[%clk 0:00:10.4]} 43. Ra6 {[%clk 0:00:06.4]}
43... Ra2 {[%clk 0:00:09.4]} 44. Rb6 {[%clk 0:00:05.3]} 44... Ra3 {[%clk
0:00:09.3]} 45. Kd4 {[%clk 0:00:03.6]} 45... Ra1 {[%clk 0:00:08.3]} 46. Ra6
{[%clk 0:00:02.9]} 46... Rd1+ {[%clk 0:00:06.6]} 47. Kc5 {[%clk 0:00:01.4]}
47... Rg1 {[%clk 0:00:04.3]} 48. Rxa5 {[%clk 0:00:01.4]} 48... Rxg3 {[%clk
0:00:04.8]} 49. Kxb4 {[%clk 0:00:01.6]} 49... Rg4 {[%clk 0:00:05]} 50. Kc5
{[%clk 0:00:01.8]} 50... Rxh4 {[%clk 0:00:04.7]} 51. b4 {[%clk 0:00:02]} 51...
Rxf4 {[%clk 0:00:05.3]} 52. b5 {[%clk 0:00:02.5]} 52... h4 {[%clk 0:00:04.9]}
53. b6 {[%clk 0:00:02.8]} 53... Be4 {[%clk 0:00:05.2]} 0-1

[Event "Early-Titled-Tuesday-Blitz-May-28-2024"]
[Site "Chess.com"]
[Date "2024.05.28"]
[Round "6"]
[White "ilqar_74"]
[Black "mangochessgo"]
[Result "0-1"]
[WhiteElo "2766"]
[BlackElo "2617"]
[TimeControl "180+1"]
[EndTime "9:08:08 PDT"]
[Termination "mangochessgo won by resignation"]

1. e4 {[%clk 0:03:00.9]} 1... e6 {[%clk 0:03:00.4]} 2. d4 {[%clk 0:02:57.8]}
2... d5 {[%clk 0:03:00.8]} 3. Nc3 {[%clk 0:02:57.1]} 3... dxe4 {[%clk
0:03:00.7]} 4. Nxe4 {[%clk 0:02:57.9]} 4... Nd7 {[%clk 0:03:00.1]} 5. Nf3 {[%clk
0:02:58]} 5... Ngf6 {[%clk 0:02:59.3]} 6. Bd3 {[%clk 0:02:53.8]} 6... Nxe4
{[%clk 0:02:56.4]} 7. Bxe4 {[%clk 0:02:53.9]} 7... Nf6 {[%clk 0:02:57.1]} 8. Bg5
{[%clk 0:02:53.5]} 8... Be7 {[%clk 0:02:56.6]} 9. Bxf6 {[%clk 0:02:53.9]} 9...
Bxf6 {[%clk 0:02:56.6]} 10. O-O {[%clk 0:02:54.5]} 10... O-O {[%clk 0:02:56.5]}
11. Qe2 {[%clk 0:02:54.3]} 11... c5 {[%clk 0:02:49.5]} 12. dxc5 {[%clk 0:02:25]}
12... Qa5 {[%clk 0:02:36.4]} 13. c3 {[%clk 0:02:21.3]} 13... Qxc5 {[%clk
0:02:35.8]} 14. Rad1 {[%clk 0:02:21.5]} 14... a5 {[%clk 0:02:30.5]} 15. Rd2
{[%clk 0:02:17.1]} 15... a4 {[%clk 0:02:17.1]} 16. a3 {[%clk 0:02:16.6]} 16...
Ra5 {[%clk 0:02:16.1]} 17. Rfd1 {[%clk 0:02:15.9]} 17... g6 {[%clk 0:02:05.9]}
18. Bc2 {[%clk 0:02:04.7]} 18... Kg7 {[%clk 0:02:04]} 19. h3 {[%clk 0:02:04.2]}
19... h5 {[%clk 0:02:03.5]} 20. Nd4 {[%clk 0:02:02.4]} 20... Qb6 {[%clk
0:02:01.6]} 21. Bb1 {[%clk 0:01:56.4]} 21... Bd7 {[%clk 0:01:51.4]} 22. Nb3
{[%clk 0:01:37.8]} 22... Bb5 {[%clk 0:01:45.7]} 23. c4 {[%clk 0:01:26.6]} 23...
axb3 {[%clk 0:01:44.7]} 24. cxb5 {[%clk 0:01:26.5]} 24... Rxb5 {[%clk
0:01:45.1]} 25. Bd3 {[%clk 0:01:11.8]} 25... Re5 {[%clk 0:01:43.4]} 26. Qf3
{[%clk 0:01:08.2]} 26... Rd8 {[%clk 0:01:41.2]} 27. Be4 {[%clk 0:01:00.4]} 27...
Rxd2 {[%clk 0:01:37.7]} 28. Rxd2 {[%clk 0:01:01.3]} 28... Qc7 {[%clk 0:01:24.1]}
29. Rd1 {[%clk 0:00:46.1]} 29... b6 {[%clk 0:01:12.3]} 30. g3 {[%clk 0:00:41.7]}
30... Qc4 {[%clk 0:01:08.3]} 31. Bb1 {[%clk 0:00:28.4]} 31... Rd5 {[%clk
0:00:57.7]} 32. Rxd5 {[%clk 0:00:28.1]} 32... exd5 {[%clk 0:00:49.5]} 33. Bd3
{[%clk 0:00:27.4]} 33... Qc1+ {[%clk 0:00:48.2]} 34. Kg2 {[%clk 0:00:27.2]}
34... Qxb2 {[%clk 0:00:40.7]} 35. Qxd5 {[%clk 0:00:26.9]} 35... Bd4 {[%clk
0:00:38.4]} 36. Qf3 {[%clk 0:00:20.1]} 36... Qc3 {[%clk 0:00:28.3]} 37. Be4
{[%clk 0:00:20.6]} 37... b2 {[%clk 0:00:15.7]} 38. Qxc3 {[%clk 0:00:20.3]} 38...
Bxc3 {[%clk 0:00:16.1]} 39. a4 {[%clk 0:00:20.5]} 39... f5 {[%clk 0:00:14.9]}
40. Bb1 {[%clk 0:00:20.3]} 40... Kf6 {[%clk 0:00:13.1]} 41. Kf3 {[%clk
0:00:20.9]} 41... g5 {[%clk 0:00:12]} 42. Ke3 {[%clk 0:00:18.6]} 42... g4 {[%clk
0:00:12]} 43. h4 {[%clk 0:00:17.7]} 43... Ke5 {[%clk 0:00:12.1]} 44. Ke2 {[%clk
0:00:15.6]} 44... Bd4 {[%clk 0:00:11.8]} 45. Bc2 {[%clk 0:00:14.9]} 45... f4
{[%clk 0:00:11.4]} 46. Bb1 {[%clk 0:00:10.6]} 46... f3+ {[%clk 0:00:11.4]} 47.
Ke1 {[%clk 0:00:10.8]} 47... Kd5 {[%clk 0:00:11]} 48. Bg6 {[%clk 0:00:09.6]}
48... Kc4 {[%clk 0:00:10.1]} 49. Bc2 {[%clk 0:00:09.9]} 49... Kc3 {[%clk
0:00:09.8]} 50. Bb1 {[%clk 0:00:10.3]} 50... Kb3 {[%clk 0:00:09.5]} 51. Bh7
{[%clk 0:00:08.2]} 51... Ka2 {[%clk 0:00:08.8]} 0-1

[Event "Early-Titled-Tuesday-Blitz-May-28-2024"]
[Site "Chess.com"]
[Date "2024.05.28"]
[Round "6"]
[White "Dubs123"]
[Black "DarZay"]
[Result "0-1"]
[WhiteElo "2440"]
[BlackElo "2306"]
[TimeControl "180+1"]
[EndTime "9:08:10 PDT"]
[Termination "DarZay won by resignation"]

1. c4 {[%clk 0:02:55.6]} 1... e6 {[%clk 0:02:59]} 2. d4 {[%clk 0:02:55.3]} 2...
d5 {[%clk 0:02:58.3]} 3. Nc3 {[%clk 0:02:54.5]} 3... Be7 {[%clk 0:02:57.7]} 4.
cxd5 {[%clk 0:02:53.2]} 4... exd5 {[%clk 0:02:57.3]} 5. Bf4 {[%clk 0:02:53.6]}
5... c6 {[%clk 0:02:57.2]} 6. Qc2 {[%clk 0:02:50.9]} 6... Nf6 {[%clk 0:02:56.2]}
7. e3 {[%clk 0:02:51]} 7... O-O {[%clk 0:02:55.8]} 8. h3 {[%clk 0:02:47.6]} 8...
c5 {[%clk 0:02:51.3]} 9. Nf3 {[%clk 0:02:42.9]} 9... cxd4 {[%clk 0:02:50.9]} 10.
Nxd4 {[%clk 0:02:42]} 10... Nc6 {[%clk 0:02:50.6]} 11. Rd1 {[%clk 0:02:36.8]}
11... Nxd4 {[%clk 0:02:44.2]} 12. Rxd4 {[%clk 0:02:16.1]} 12... Be6 {[%clk
0:02:33.9]} 13. Be2 {[%clk 0:02:02.2]} 13... Bc5 {[%clk 0:02:30.2]} 14. Rd2
{[%clk 0:01:50.8]} 14... Rc8 {[%clk 0:02:06]} 15. O-O {[%clk 0:01:42.8]} 15...
Bb4 {[%clk 0:02:05.3]} 16. Bf3 {[%clk 0:01:30]} 16... Bxc3 {[%clk 0:02:03.4]}
17. bxc3 {[%clk 0:01:30.9]} 17... Qa5 {[%clk 0:02:02.8]} 18. Be5 {[%clk
0:01:27.9]} 18... Nd7 {[%clk 0:02:01.1]} 19. Bd4 {[%clk 0:01:27.4]} 19... b5
{[%clk 0:01:57.7]} 20. Qb2 {[%clk 0:01:20.8]} 20... Nc5 {[%clk 0:01:54.3]} 21.
Rb1 {[%clk 0:01:09]} 21... a6 {[%clk 0:01:49.2]} 22. Qb4 {[%clk 0:00:47.7]}
22... Qxb4 {[%clk 0:01:45.5]} 23. cxb4 {[%clk 0:00:48.6]} 23... Ne4 {[%clk
0:01:41.3]} 24. Bxe4 {[%clk 0:00:43.6]} 24... dxe4 {[%clk 0:01:40.9]} 25. Bc5
{[%clk 0:00:42.8]} 25... Rfd8 {[%clk 0:01:39.4]} 26. Rbd1 {[%clk 0:00:41.1]}
26... Rxd2 {[%clk 0:01:37.1]} 27. Rxd2 {[%clk 0:00:42]} 27... h6 {[%clk
0:01:33.5]} 28. Kh2 {[%clk 0:00:39.5]} 28... a5 {[%clk 0:01:33.2]} 29. a3 {[%clk
0:00:39]} 29... axb4 {[%clk 0:01:32.5]} 30. axb4 {[%clk 0:00:39.9]} 30... Bc4
{[%clk 0:01:23]} 31. Kg3 {[%clk 0:00:39.2]} 31... Ra8 {[%clk 0:01:21.9]} 32. Rd4
{[%clk 0:00:38.2]} 32... Bd3 {[%clk 0:01:21.6]} 33. f3 {[%clk 0:00:37.2]} 33...
f5 {[%clk 0:01:19.4]} 34. fxe4 {[%clk 0:00:37.2]} 34... fxe4 {[%clk 0:01:18]}
35. Rd7 {[%clk 0:00:36.5]} 35... g5 {[%clk 0:01:09.2]} 36. Bd4 {[%clk
0:00:35.6]} 36... Ra2 {[%clk 0:01:07.3]} 37. Rg7+ {[%clk 0:00:34.3]} 37... Kf8
{[%clk 0:01:05.6]} 38. Rh7 {[%clk 0:00:34]} 38... Bf1 {[%clk 0:01:05.4]} 39. Kg4
{[%clk 0:00:26.5]} 39... Rxg2+ {[%clk 0:01:04.6]} 40. Kf5 {[%clk 0:00:26.9]}
40... Rh2 {[%clk 0:00:50.8]} 41. Kf6 {[%clk 0:00:17.3]} 41... Rf2+ {[%clk
0:00:49.1]} 42. Ke5 {[%clk 0:00:14.3]} 42... Bxh3 {[%clk 0:00:39.7]} 43. Rxh6
{[%clk 0:00:14.5]} 43... g4 {[%clk 0:00:24.6]} 44. Kxe4 {[%clk 0:00:14.7]} 44...
Rf7 {[%clk 0:00:21.6]} 45. Rg6 {[%clk 0:00:14]} 45... Ke7 {[%clk 0:00:20.6]} 46.
Kd5 {[%clk 0:00:14.2]} 46... Rf5+ {[%clk 0:00:19.5]} 47. Kc6 {[%clk 0:00:14.3]}
47... Bg2+ {[%clk 0:00:17.5]} 48. Kb6 {[%clk 0:00:14]} 48... Bf3 {[%clk
0:00:16.7]} 49. Bc5+ {[%clk 0:00:14.3]} 49... Kf7 {[%clk 0:00:16.4]} 50. Rh6
{[%clk 0:00:12.7]} 50... Rf6+ {[%clk 0:00:16]} 51. Rxf6+ {[%clk 0:00:12.2]}
51... Kxf6 {[%clk 0:00:16.4]} 52. Bd6 {[%clk 0:00:12.7]} 52... Be2 {[%clk
0:00:14.9]} 53. Bg3 {[%clk 0:00:12.3]} 53... Kf5 {[%clk 0:00:13.8]} 54. Kc5
{[%clk 0:00:12.4]} 54... Ke4 {[%clk 0:00:13.9]} 55. Bf4 {[%clk 0:00:12.7]} 55...
Kf3 {[%clk 0:00:12.5]} 56. Kd4 {[%clk 0:00:13]} 56... g3 {[%clk 0:00:12.2]} 57.
Bxg3 {[%clk 0:00:12.4]} 57... Kxg3 {[%clk 0:00:12.1]} 58. e4 {[%clk 0:00:13.3]}
58... Kf4 {[%clk 0:00:11.4]} 59. e5 {[%clk 0:00:13.5]} 59... Bc4 {[%clk
0:00:11.2]} 0-1

[Event "Early-Titled-Tuesday-Blitz-May-28-2024"]
[Site "Chess.com"]
[Date "2024.05.28"]
[Round "6"]
[White "zverr1"]
[Black "Flaccidmoves"]
[Result "0-1"]
[WhiteElo "2620"]
[BlackElo "2497"]
[TimeControl "180+1"]
[EndTime "9:08:11 PDT"]
[Termination "Flaccidmoves won by resignation"]

1. e4 {[%clk 0:03:00.9]} 1... Nf6 {[%clk 0:02:58.3]} 2. Nc3 {[%clk 0:03:00.4]}
2... d5 {[%clk 0:02:58.3]} 3. exd5 {[%clk 0:03:01.3]} 3... Nxd5 {[%clk
0:02:58.8]} 4. Nxd5 {[%clk 0:03:02.2]} 4... Qxd5 {[%clk 0:02:59.1]} 5. Qf3
{[%clk 0:03:02.9]} 5... Be6 {[%clk 0:02:46.3]} 6. Bd3 {[%clk 0:03:02.6]} 6...
Nc6 {[%clk 0:02:42.6]} 7. Be4 {[%clk 0:03:02.1]} 7... Qd7 {[%clk 0:02:34.4]} 8.
Ne2 {[%clk 0:02:58.3]} 8... g6 {[%clk 0:02:32.2]} 9. c3 {[%clk 0:02:48.4]} 9...
Bg7 {[%clk 0:02:30.8]} 10. d4 {[%clk 0:02:46.4]} 10... Rd8 {[%clk 0:02:25.2]}
11. Bf4 {[%clk 0:02:41.7]} 11... O-O {[%clk 0:02:22.1]} 12. O-O {[%clk
0:02:33.1]} 12... Bg4 {[%clk 0:02:16.2]} 13. Qe3 {[%clk 0:02:30.7]} 13... Bxe2
{[%clk 0:01:56.9]} 14. Qxe2 {[%clk 0:02:30.3]} 14... e6 {[%clk 0:01:43.5]} 15.
Rad1 {[%clk 0:02:26.3]} 15... a6 {[%clk 0:01:32.2]} 16. Qf3 {[%clk 0:02:08.9]}
16... Na5 {[%clk 0:01:16.7]} 17. b4 {[%clk 0:01:48.8]} 17... Nc4 {[%clk
0:01:16.1]} 18. Bxb7 {[%clk 0:01:41.7]} 18... Qa4 {[%clk 0:01:12.9]} 19. Bxc7
{[%clk 0:01:01]} 19... Qxa2 {[%clk 0:00:56.8]} 20. Bxd8 {[%clk 0:00:58.4]} 20...
Rxd8 {[%clk 0:00:57.7]} 21. Ra1 {[%clk 0:00:39.8]} 21... Qb3 {[%clk 0:00:52.9]}
22. Qd3 {[%clk 0:00:30.5]} 22... Rxd4 {[%clk 0:00:43.3]} 23. Rfb1 {[%clk
0:00:21.6]} 23... Rxd3 {[%clk 0:00:34.3]} 24. Rxb3 {[%clk 0:00:21.5]} 24... Nd2
{[%clk 0:00:23.4]} 25. Rd1 {[%clk 0:00:11.4]} 25... Bxc3 {[%clk 0:00:14.4]} 26.
Bxa6 {[%clk 0:00:07.6]} 26... Nf3+ {[%clk 0:00:05.6]} 27. gxf3 {[%clk
0:00:05.9]} 27... Rxd1+ {[%clk 0:00:06.2]} 28. Kg2 {[%clk 0:00:06.6]} 28... Bd4
{[%clk 0:00:06.6]} 29. Be2 {[%clk 0:00:03.6]} 29... Rd2 {[%clk 0:00:06.7]} 30.
Kf1 {[%clk 0:00:04.2]} 30... Rc2 {[%clk 0:00:06.7]} 31. b5 {[%clk 0:00:04.1]}
31... Bb6 {[%clk 0:00:06.8]} 32. Ra3 {[%clk 0:00:03.6]} 32... Rc1+ {[%clk
0:00:07]} 33. Kg2 {[%clk 0:00:03.9]} 33... Rc2 {[%clk 0:00:07.7]} 34. Kf1 {[%clk
0:00:03]} 34... Rc1+ {[%clk 0:00:08]} 35. Kg2 {[%clk 0:00:03.8]} 35... Rc2
{[%clk 0:00:08.7]} 36. Ra6 {[%clk 0:00:01]} 36... Bd4 {[%clk 0:00:05.4]} 37.
Ra8+ {[%clk 0:00:01.4]} 37... Kg7 {[%clk 0:00:05.1]} 38. Bd3 {[%clk 0:00:02]}
38... Rxf2+ {[%clk 0:00:04.8]} 39. Kg3 {[%clk 0:00:02.7]} 39... Rb2 {[%clk
0:00:05.7]} 40. Rb8 {[%clk 0:00:01.6]} 40... Be5+ {[%clk 0:00:05.9]} 41. f4
{[%clk 0:00:02]} 41... Bxb8 {[%clk 0:00:06.8]} 42. Kf3 {[%clk 0:00:02.7]} 42...
Rb4 {[%clk 0:00:07]} 43. Ke3 {[%clk 0:00:02.9]} 43... Bxf4+ {[%clk 0:00:07.1]}
44. Ke2 {[%clk 0:00:03.8]} 44... Bb8 {[%clk 0:00:07.3]} 45. h3 {[%clk
0:00:03.5]} 45... f5 {[%clk 0:00:07.4]} 46. Kf3 {[%clk 0:00:04.1]} 46... e5
{[%clk 0:00:07.9]} 47. Bf1 {[%clk 0:00:04.3]} 47... e4+ {[%clk 0:00:08.3]} 48.
Ke3 {[%clk 0:00:03.4]} 48... Kf6 {[%clk 0:00:08.6]} 49. Kd2 {[%clk 0:00:03.4]}
49... Ke5 {[%clk 0:00:08.6]} 50. Kc3 {[%clk 0:00:04]} 50... Bd6 {[%clk
0:00:08.8]} 51. Be2 {[%clk 0:00:03.6]} 51... f4 {[%clk 0:00:08.7]} 52. Kd2
{[%clk 0:00:03.9]} 52... f3 {[%clk 0:00:08.9]} 53. Bf1 {[%clk 0:00:04.2]} 53...
Bc5 {[%clk 0:00:09.1]} 54. Kc3 {[%clk 0:00:04.4]} 54... e3 {[%clk 0:00:08.9]}
55. Kd3 {[%clk 0:00:05.3]} 55... e2 {[%clk 0:00:08.9]} 56. Bxe2 {[%clk
0:00:04.6]} 56... fxe2 {[%clk 0:00:09.8]} 57. Kxe2 {[%clk 0:00:05.5]} 57... Rxb5
{[%clk 0:00:10.4]} 58. h4 {[%clk 0:00:05.4]} 58... Rb4 {[%clk 0:00:10.9]} 59.
Kf3 {[%clk 0:00:06.3]} 59... Rxh4 {[%clk 0:00:10.4]} 60. Kg3 {[%clk 0:00:05.5]}
60... Rf4 {[%clk 0:00:10.8]} 61. Kh3 {[%clk 0:00:05.7]} 61... Bf8 {[%clk
0:00:11]} 62. Kg2 {[%clk 0:00:06.6]} 62... Ke4 {[%clk 0:00:11.1]} 0-1

[Event "Early-Titled-Tuesday-Blitz-May-28-2024"]
[Site "Chess.com"]
[Date "2024.05.28"]
[Round "6"]
[White "platy3"]
[Black "dmosesov"]
[Result "1/2-1/2"]
[WhiteElo "2875"]
[BlackElo "2664"]
[TimeControl "180+1"]
[EndTime "9:08:15 PDT"]
[Termination "Game drawn by stalemate"]

1. e4 {[%clk 0:02:56.6]} 1... e5 {[%clk 0:03:00.3]} 2. Nf3 {[%clk 0:02:55.2]}
2... Nc6 {[%clk 0:03:00.8]} 3. Bc4 {[%clk 0:02:55.8]} 3... Nf6 {[%clk
0:02:59.6]} 4. d3 {[%clk 0:02:56.4]} 4... h6 {[%clk 0:02:59.3]} 5. a4 {[%clk
0:02:56.3]} 5... d6 {[%clk 0:02:58.6]} 6. a5 {[%clk 0:02:56]} 6... a6 {[%clk
0:02:59]} 7. O-O {[%clk 0:02:56.3]} 7... g5 {[%clk 0:02:57.4]} 8. Nc3 {[%clk
0:02:55.9]} 8... Bg7 {[%clk 0:02:56.6]} 9. Be3 {[%clk 0:02:33.1]} 9... O-O
{[%clk 0:02:53.6]} 10. Nd5 {[%clk 0:02:25.4]} 10... Nxd5 {[%clk 0:02:48.6]} 11.
Bxd5 {[%clk 0:02:26.3]} 11... Ne7 {[%clk 0:02:45.8]} 12. Bb3 {[%clk 0:02:25.7]}
12... Ng6 {[%clk 0:02:26.3]} 13. Nd2 {[%clk 0:02:23]} 13... Kh7 {[%clk 0:02:24]}
14. g3 {[%clk 0:02:16.7]} 14... Qe7 {[%clk 0:02:05.2]} 15. Qh5 {[%clk
0:02:14.2]} 15... Nf4 {[%clk 0:01:54.3]} 16. gxf4 {[%clk 0:02:02.5]} 16... exf4
{[%clk 0:01:55.2]} 17. Kh1 {[%clk 0:01:52.2]} 17... fxe3 {[%clk 0:01:41.3]} 18.
fxe3 {[%clk 0:01:53.1]} 18... f5 {[%clk 0:01:41.7]} 19. exf5 {[%clk 0:01:42.8]}
19... Bxf5 {[%clk 0:01:42.6]} 20. Qe2 {[%clk 0:01:16.2]} 20... c6 {[%clk
0:01:31.9]} 21. c3 {[%clk 0:01:07.6]} 21... Bg6 {[%clk 0:01:24.7]} 22. Rxf8
{[%clk 0:01:00.4]} 22... Rxf8 {[%clk 0:01:25.6]} 23. Rf1 {[%clk 0:01:00.6]}
23... d5 {[%clk 0:01:17.2]} 24. d4 {[%clk 0:00:56.4]} 24... Rxf1+ {[%clk
0:00:55.2]} 25. Nxf1 {[%clk 0:00:57.3]} 25... Qe4+ {[%clk 0:00:54.5]} 26. Kg1
{[%clk 0:00:57.1]} 26... Qb1 {[%clk 0:00:49.3]} 27. Bd1 {[%clk 0:00:40.7]} 27...
Be4 {[%clk 0:00:44.8]} 28. Nd2 {[%clk 0:00:36.1]} 28... Qxb2 {[%clk 0:00:28.2]}
29. Nxe4 {[%clk 0:00:35.9]} 29... Qxe2 {[%clk 0:00:28.9]} 30. Bxe2 {[%clk
0:00:36.3]} 30... dxe4 {[%clk 0:00:28.6]} 31. Bg4 {[%clk 0:00:37.1]} 31... Bf6
{[%clk 0:00:23.2]} 32. Bc8 {[%clk 0:00:34.9]} 32... Bd8 {[%clk 0:00:23.7]} 33.
Bxb7 {[%clk 0:00:35.2]} 33... Bxa5 {[%clk 0:00:23.7]} 34. c4 {[%clk 0:00:34.3]}
34... Kg6 {[%clk 0:00:18.6]} 35. Bxc6 {[%clk 0:00:33.8]} 35... Kf5 {[%clk
0:00:18.6]} 36. Kf2 {[%clk 0:00:27.1]} 36... Bc7 {[%clk 0:00:17.8]} 37. c5
{[%clk 0:00:24.2]} 37... Bxh2 {[%clk 0:00:15.7]} 38. d5 {[%clk 0:00:22.2]} 38...
h5 {[%clk 0:00:11.3]} 39. d6 {[%clk 0:00:21.1]} 39... Ke6 {[%clk 0:00:10.3]} 40.
Bxe4 {[%clk 0:00:20.1]} 40... g4 {[%clk 0:00:07.9]} 41. Bg6 {[%clk 0:00:12.6]}
41... h4 {[%clk 0:00:07.4]} 42. Bh5 {[%clk 0:00:13.2]} 42... Kd5 {[%clk
0:00:01.6]} 43. Kg2 {[%clk 0:00:10]} 43... Bg3 {[%clk 0:00:01]} 44. d7 {[%clk
0:00:05.1]} 44... Bc7 {[%clk 0:00:01.9]} 45. Bxg4 {[%clk 0:00:03.7]} 45... Kxc5
{[%clk 0:00:02.4]} 46. Kh3 {[%clk 0:00:04.6]} 46... Bd8 {[%clk 0:00:02.6]} 47.
e4 {[%clk 0:00:04.5]} 47... Kd6 {[%clk 0:00:03.5]} 48. Bf5 {[%clk 0:00:04.5]}
48... Ke5 {[%clk 0:00:04.4]} 49. Bh7 {[%clk 0:00:04.3]} 49... a5 {[%clk
0:00:05.3]} 50. Bg8 {[%clk 0:00:04.7]} 50... Kxe4 {[%clk 0:00:05.1]} 51. Bf7
{[%clk 0:00:04.8]} 51... Ke5 {[%clk 0:00:06]} 52. Bg8 {[%clk 0:00:05.2]} 52...
Kd6 {[%clk 0:00:06.5]} 53. Bf7 {[%clk 0:00:05.6]} 53... Kc5 {[%clk 0:00:07.1]}
54. Bg8 {[%clk 0:00:06]} 54... Kb4 {[%clk 0:00:07.7]} 55. Bf7 {[%clk 0:00:06.5]}
55... a4 {[%clk 0:00:08.3]} 56. Bg8 {[%clk 0:00:07]} 56... Kc3 {[%clk
0:00:08.8]} 57. Bf7 {[%clk 0:00:07.5]} 57... Kb2 {[%clk 0:00:09.3]} 58. Bg8
{[%clk 0:00:08.1]} 58... a3 {[%clk 0:00:09.8]} 59. Bf7 {[%clk 0:00:08.7]} 59...
a2 {[%clk 0:00:10.4]} 60. Bxa2 {[%clk 0:00:09.2]} 60... Kxa2 {[%clk 0:00:11.3]}
61. Kg2 {[%clk 0:00:09.6]} 61... Kb3 {[%clk 0:00:12.2]} 62. Kh1 {[%clk
0:00:10.3]} 62... Kc4 {[%clk 0:00:13.1]} 63. Kg1 {[%clk 0:00:11]} 63... Kd5
{[%clk 0:00:14]} 64. Kh1 {[%clk 0:00:11.9]} 64... Kd6 {[%clk 0:00:14.6]} 65. Kg1
{[%clk 0:00:12.8]} 65... Kxd7 {[%clk 0:00:14.8]} 66. Kh1 {[%clk 0:00:13.7]}
66... Ke6 {[%clk 0:00:15.6]} 67. Kg1 {[%clk 0:00:14.6]} 67... Kf5 {[%clk
0:00:16.5]} 68. Kh1 {[%clk 0:00:15.5]} 68... Kg4 {[%clk 0:00:17.4]} 69. Kg1
{[%clk 0:00:16.4]} 69... h3 {[%clk 0:00:17.9]} 70. Kh1 {[%clk 0:00:17.3]} 70...
Kg3 {[%clk 0:00:18.6]} 71. Kg1 {[%clk 0:00:17.8]} 71... h2+ {[%clk 0:00:19.2]}
72. Kh1 {[%clk 0:00:18.7]} 72... Bc7 {[%clk 0:00:19.9]} 1/2-1/2